Cogmind - Beta 11.1 @@@ ROGUE MODE // 2022.08.18 @ 00:12:51 Player: NoNeedToExplain Result: Destroyed by G-73 Enforcer with Heavy Laser Performance ------------- Evolutions (9) 4500 Regions Visited (30) 6000 Robots Destroyed (511) 2555 Value Destroyed (22092) 22092 Prototype IDs (41) 820 Alien Tech Used (3) 600 Bonus (8710) 8710 TOTAL SCORE: 45277 Bonus ------- Triggered High Security 500 High Alert Combat Kills 6150 Follower Combat Kills 1278 Network Hubs Disabled 200 Met Data Miner 300 Met Zhirov 300 Scanned by Researcher 500 Friendly Fire -518 Cogmind --------- Core Integrity 0/1600 Matter 213/300 Energy 100/100 System Corruption 12% Temperature Cool (0) Movement Core (50) Location -1/Access Parts ------- > --- POWER (3) -------- (None) > --- PROPULSION (6) --- (None) > --- UTILITY (13) ----- (None) > --- WEAPON (4) ------- (None) > --- INVENTORY (5) ---- Matter Compressor (0) Enhanced Nova Cannon Enhanced Nova Cannon Compact Linear Accelerator Compact Linear Accelerator Peak State ------------ > --- POWER ------------ Quantum Reactor Light Quantum Reactor Light Quantum Reactor > --- PROPULSION ------- Armored Heavy Treads Advanced Heavy Treads Enhanced Armored Heavy Treads > --- UTILITY ---------- Advanced Heat Sink Advanced Coolant Injector High-capacity Storage Unit Experimental Matter Compressor Experimental Optical Array Long-range Terrain Scanner Advanced Terrain Scan Processor Experimental Targeting Computer Improved Transmission Jammer Improved Utility Shielding Graphene Brace Advanced Focal Shield Advanced Force Field > --- WEAPON ----------- Long-range Phase Cannon Long-range Phase Cannon Long-range Phase Cannon Enhanced Nova Cannon > --- INVENTORY -------- Micro Antimatter Reactor Armored Heavy Treads Advanced Heat Sink Matter Compressor Advanced Target Analyzer Advanced Target Analyzer Improved Transmission Jammer ECM Suite Transdimensional Reconstructor Enhanced Quantum Rifle Disruptor Cannon Long-range Phase Cannon Heavy Linear Accelerator Gamma Bomb Array Micro-nuke Launcher Fusion Bomb Launcher Fusion Bomb Launcher [Rating: 203] Favorites ----------- Power F-cell Engine Engine F-cell Engine Power Core Reinforced Fission Core Reactor Antimatter Reactor Propulsion Medium Treads Treads Medium Treads Leg Aluminum Leg Wheel Wheel Flight Unit Makeshift Flight Unit Utility High-capacity Storage Unit Device Improved Cooling System Storage High-capacity Storage Unit Processor Improved Signal Interpreter Hackware Hacking Suite Protection Centrium Medium Armor Plating Weapon Heavy Phase Cannon Energy Gun Dispersion Rifle Energy Cannon Heavy Phase Cannon Ballistic Gun Coil Gun Ballistic Cannon Heavy Assault Cannon Launcher Heavy Rocket Launcher Slashing Weapon Phasing Sabre Special Melee Weapon Datajack Build | -11 -10 -10 -9 -9 -8 -7 -7 -7 -7 -6 -6 -6 -6 -6 -6 -6 -6 -5 -5 -5 -4 -4 -4 -4 -4 -4 -3 -3 -2 -1 ------- Run | Scr Mat Min Mat Sto Mat Fac Low Low Dat Pro Fac Was Fac Ext Cet Arc Hub Fac Upp Upp Fac Was Fac Upp Upp Zhi Pro Res Res Acc Slots Evolved 18 | . . . 2 . 2 2 . . . . 2 . . . . . . 2 . . 2 . . . . . . 2 2 2 Power 2 | . . . . . . . . . . . 1 . . . . . . . . . 1 . . . . . . . . . Propulsion 4 | . . . 1 . 1 . . . . . . . . . . . . 2 . . . . . . . . . . . . Utility 11 | . . . 1 . 1 1 . . . . 1 . . . . . . . . . 1 . . . . . . 2 2 2 Weapon 1 | . . . . . . 1 . . . . . . . . . . . . . . . . . . . . . . . . Parts Attached 494 | 6 9 8 28 25 19 33 4 4 3 12 18 5 8 4 8 2 2 33 15 12 6 7 61 5 6 7 10 84 8 42 Power 50 | 1 . 1 3 6 2 2 . . . . 2 . 1 . . . . . . 1 1 3 9 . 2 1 . 8 1 6 Engine 16 | 1 . 1 3 5 . 1 . . . . 1 . 1 . . . . . . . . 1 . . . . . 1 . 1 Core 7 | . . . . 1 2 1 . . . . . . . . . . . . . . 1 . 2 . . . . . . . Reactor 27 | . . . . . . . . . . . 1 . . . . . . . . 1 . 2 7 . 2 1 . 7 1 5 Propulsion 74 | 2 3 1 9 6 4 8 3 2 . 2 3 . . 2 1 1 . 6 1 . 1 . 5 . . . 1 7 . 6 Treads 54 | . 2 . 6 3 1 7 1 2 . 1 1 . . 2 1 1 . 6 1 . 1 . 5 . . . 1 7 . 5 Leg 5 | 2 . . . 1 . . . . . 1 . . . . . . . . . . . . . . . . . . . 1 Wheel 11 | . 1 1 3 2 3 1 . . . . . . . . . . . . . . . . . . . . . . . . Hover . | . . . . . . . . . . . . . . . . . . . . . . . . . . . . . . . Flight 4 | . . . . . . . 2 . . . 2 . . . . . . . . . . . . . . . . . . . Utility 183 | 1 2 2 4 3 7 9 1 1 . 4 6 . 3 . 4 1 1 19 7 2 2 2 27 3 2 2 6 45 5 12 Device 146 | . 1 1 2 2 4 7 1 1 . 3 6 . 3 . 2 1 1 17 6 2 2 2 27 2 . 2 5 36 4 6 Storage 11 | 1 1 . 1 1 . . . . . . . . . . . . . 1 . . . . . . . . . 4 . 2 Processor 12 | . . . . . 2 . . . . . . . . . 1 . . . . . . . . . 1 . 1 5 . 2 Hackware 1 | . . . . . . . . . . . . . . . . . . . . . . . . 1 . . . . . . Protection 13 | . . 1 1 . 1 2 . . . 1 . . . . 1 . . 1 1 . . . . . 1 . . . 1 2 Artifact . | . . . . . . . . . . . . . . . . . . . . . . . . . . . . . . . Weapon 187 | 2 4 4 12 10 6 14 . 1 3 6 7 5 4 2 3 . 1 8 7 9 2 2 20 2 2 4 3 24 2 18 Energy Gun 43 | 1 2 1 2 1 . . . . . 3 4 1 2 2 2 . 1 2 2 . . . 4 1 1 2 2 7 . . Energy Cannon 54 | . . . 6 6 3 6 . . 1 . . . . . . . . 4 2 5 1 . 7 . . 1 . 6 2 4 Ballistic Gun 18 | 1 . 1 1 . . 1 . . . 2 . 2 2 . . . . . . . . . 5 . . . . 3 . . Ballistic Cannon 26 | . . . . . . 3 . 1 2 1 1 . . . . . . . 1 . . . 2 . . 1 1 5 . 8 Launcher 43 | . 2 2 2 2 3 4 . . . . 2 2 . . 1 . . 2 2 4 1 2 1 1 1 . . 3 . 6 Special Weapon . | . . . . . . . . . . . . . . . . . . . . . . . . . . . . . . . Impact Weapon . | . . . . . . . . . . . . . . . . . . . . . . . . . . . . . . . Slashing Weapon 1 | . . . . . . . . . . . . . . . . . . . . . . . 1 . . . . . . . Piercing Weapon . | . . . . . . . . . . . . . . . . . . . . . . . . . . . . . . . Special Melee Weapon 2 | . . . 1 1 . . . . . . . . . . . . . . . . . . . . . . . . . . Unidentified Prototypes 25 | . . . 2 4 1 2 . 1 . . 1 . . . 3 . . 1 . . . . 2 . . 1 . 4 . 3 Corrupted Parts 4 | . . . . . . . . . . 2 . . . . . . . . . . . . 2 . . . . . . . System Corruption 27 | . . . . . . . . . . 18 . . . . . . . . . . . . 9 . . . . . . . Parts Lost 89 | . . 2 1 2 4 2 . 2 . 4 . . . . . 1 2 5 . 1 . 3 8 . . . 4 12 . 36 Power 18 | . . . . 1 . . . . . . . . . . . . . . . 1 . . 2 . . . . 6 . 8 Propulsion 21 | . . 1 1 1 3 . . 2 . . . . . . . 1 . 2 . . . . 1 . . . 1 . . 8 Utility 28 | . . . . . 1 2 . . . 2 . . . . . . 1 1 . . . 2 3 . . . 2 3 . 11 Weapon 22 | . . 1 . . . . . . . 2 . . . . . . 1 2 . . . 1 2 . . . 1 3 . 9 Highest Loss Streak 14 | . . 1 1 1 2 1 . 2 . 3 . . . . . 1 2 4 . 1 . 3 3 . . . 4 3 . 14 To Critical Strikes . | . . . . . . . . . . . . . . . . . . . . . . . . . . . . . . . Average Slot Usage (%) 89 | . 99 100 100 99 91 92 92 91 73 95 99 93 99 100 95 93 93 92 87 87 84 70 79 80 79 60 77 83 86 68 Engine 5 | . 14 14 11 8 . 6 7 7 7 7 6 6 9 12 12 12 12 11 11 5 5 5 . . . . . . . . Reactor 3 | . . . . . . . . . . . 6 6 2 . . . . . . 4 5 3 7 10 10 11 15 12 11 7 Treads 19 | . 13 14 19 22 12 19 30 29 28 28 24 25 25 25 20 18 18 25 22 22 18 15 15 15 15 15 14 13 12 8 Wheel 3 | . 12 14 13 10 14 10 . . . . . . . . . . . . . . . . . . . . . . . . Device 20 | . 13 9 18 22 18 17 20 22 21 20 24 25 25 25 18 21 25 20 22 22 25 20 29 30 27 15 17 20 24 18 Storage 6 | . 14 14 11 11 9 7 7 7 7 7 6 6 6 6 6 6 6 5 5 5 5 5 5 5 5 5 5 4 8 5 Processor 4 | . . . . . 8 9 7 7 7 6 . . . . 6 2 . . . . . . . . . 5 8 14 12 9 Protection 2 | . . 4 3 . . 3 2 . . . 6 6 6 6 6 6 6 5 5 5 5 2 . . . 5 1 . . 3 Energy Gun 5 | . 13 2 2 . . . . . . 9 10 6 11 12 24 25 25 13 8 5 5 . 6 9 6 . 10 5 . . Energy Cannon 6 | . . . 16 20 16 8 7 7 . . . . . . . . . 8 13 15 15 10 4 . . . . 2 8 6 Ballistic Gun 3 | . 14 25 2 . . . . . . 2 12 . 12 11 . . . . . . . . 3 . . . . 1 . . Ballistic Cannon 2 | . . . . . . 6 7 7 2 12 . . . . . . . . . . . . 1 5 5 . 4 5 8 2 Naked Turns 15 | . . . . . . . . . . . . . . . . . . . . . . . . . . . . . . 15 Heaviest Build 166 | 12 89 93 97 60 62 80 80 80 80 81 110 110 116 108 107 107 107 122 117 124 137 143 146 134 155 139 145 146 154 166 Greatest Support 225 | 20 40 10 40 60 42 112 112 112 112 112 112 112 112 114 138 138 138 207 207 180 225 225 225 210 210 210 210 210 190 210 Greatest Overweight (x) 9 | . 8 9 4 4 3 2 . . . . 1 . 1 . . . . . . . . . . . . . . . . 1 Average Overweight (x) . | . 7 8 1 2 2 . . . . . . . . . . . . . . . . . . . . . . . . . Largest Inventory Capacity 25 | 8 25 25 25 20 20 20 20 20 20 20 20 20 20 20 20 20 20 20 20 20 20 20 20 20 20 20 20 20 20 20 Average Capacity 19 | 6 24 25 17 18 20 20 20 20 20 20 20 20 20 20 20 20 20 20 20 20 20 20 20 20 20 20 20 20 20 16 Most Carried 25 | 6 21 25 25 20 20 20 20 20 20 20 20 20 20 20 20 20 20 20 20 20 20 20 20 20 20 20 20 20 20 20 Average Carried 18 | 2 12 24 16 18 19 19 20 19 20 19 19 19 19 19 19 19 19 19 19 19 19 19 19 20 19 19 16 19 17 13 Final Capacity 25 | 8 25 25 15 20 20 20 20 20 20 20 20 20 20 20 20 20 20 20 20 20 20 20 20 20 20 20 20 20 20 5 Final Carried 24 | 6 21 24 15 20 20 20 20 20 20 20 20 19 19 20 20 20 19 20 20 20 20 20 20 20 20 20 14 17 20 5 Class Distribution -------------------- 17% | Scavenger-Tank 16% | Scavenger-Mutant 13% | Mutant 13% | Generator-Skirmisher 9% | Tank 7% | Skirmisher 6% | Generator-Tank 4% | Commander-Tank 4% | Generator-Mutant 4% | Scavenger-Skirmisher Dominant Class ---------------- Mutant | -10/Materials Mutant | -10/Mines Mutant | -9/Materials Scavenger-Mutant | -9/Storage Scavenger-Mutant | -8/Materials Tank | -7/Factory Skirmisher | -7/Lower Caves Skirmisher | -7/Lower Caves Mutant | -7/Data Miner Gunner | -6/Proximity Caves Scavenger-Tank | -6/Factory Mutant | -6/Waste Tank | -6/Factory Commander-Tank | -6/Extension Scavenger-Tank | -6/Cetus Scavenger-Tank | -6/Archives Scavenger-Tank | -6/Hub_04(d) Scavenger-Tank | -5/Factory Scavenger-Tank | -5/Upper Caves Scavenger-Mutant | -5/Upper Caves Scavenger-Mutant | -4/Factory Generator-Mutant | -4/Waste Generator-Tank | -4/Factory Generator-Skirmisher | -4/Upper Caves Generator-Mutant | -4/Upper Caves Generator-Mutant | -4/Zhirov Generator-Skirmisher | -3/Proximity Caves Generator-Skirmisher | -3/Research Scavenger-Tank | -2/Research Generator-Tank | -1/Access Resources | -11 -10 -10 -9 -9 -8 -7 -7 -7 -7 -6 -6 -6 -6 -6 -6 -6 -6 -5 -5 -5 -4 -4 -4 -4 -4 -4 -3 -3 -2 -1 ----------- Run | Scr Mat Min Mat Sto Mat Fac Low Low Dat Pro Fac Was Fac Ext Cet Arc Hub Fac Upp Upp Fac Was Fac Upp Upp Zhi Pro Res Res Acc Matter Collected 13144 | 190 120 216 459 301 192 1254 49 190 . 382 412 632 186 155 128 20 23 433 158 222 46 108 1618 227 155 77 451 3074 327 1339 Remotely 981 | . . . . . . . . . . . . . . . . . . . . . . . 928 53 . . . . . . Salvage Created 24159 | . 188 105 1449 1266 859 1812 . 56 . 454 253 1143 222 351 315 268 92 1226 721 384 461 878 2355 176 20 101 . 5092 339 3573 Parts 994 | . 23 19 81 85 35 94 . 3 . 19 14 . 16 11 11 14 6 43 23 16 19 10 104 14 4 2 . 205 10 113 Haulers Intercepted 15 | . 1 . 1 4 3 1 . . . 1 . . . . . . . . . . . . . . . . . 2 . 2 Recyclers Shooed 18 | . . . 1 4 . 2 . . . . . . . . . . . . . . . . 7 . . . . 1 . 3 Parts Field Recycled . | . . . . . . . . . . . . . . . . . . . . . . . . . . . . . . . Retrieved Matter . | . . . . . . . . . . . . . . . . . . . . . . . . . . . . . . . Parts Self-Destructed 70 | . . . . . . . . 9 . 16 . . . . . . . . 15 14 . . . 12 3 1 . . . . Prevented 32 | . . . . . . . . 2 . 11 . . . . . . . . 10 1 . . . 7 . . 1 . . . Kills | -11 -10 -10 -9 -9 -8 -7 -7 -7 -7 -6 -6 -6 -6 -6 -6 -6 -6 -5 -5 -5 -4 -4 -4 -4 -4 -4 -3 -3 -2 -1 ------- Run | Scr Mat Min Mat Sto Mat Fac Low Low Dat Pro Fac Was Fac Ext Cet Arc Hub Fac Upp Upp Fac Was Fac Upp Upp Zhi Pro Res Res Acc Combat Hostiles Destroyed 393 | . 9 8 27 23 12 40 . 3 . 6 7 6 3 5 6 3 2 20 12 10 12 4 33 8 3 . 1 64 2 64 Guns 68 | . 3 2 . . . . . . . 4 3 . 3 5 1 3 1 7 2 . . . 18 2 . . 1 13 . . Cannons 168 | . . . 20 17 7 30 . 2 . 1 . . . . . . . 9 5 3 . . 9 1 . . . 40 2 22 AOE 128 | . 6 6 6 5 3 9 . 1 . . 3 6 . . 3 . . 2 3 7 11 3 6 5 3 . . 4 . 36 Classes Destroyed 22 | . 5 . 4 4 1 1 . . . . . 1 . . . . . 1 1 . . . . . . . . 2 . 2 Worker 29 | . 1 . . 1 1 9 . . . . . . . . . . . 1 . . 3 . 4 . . . . 5 . 4 Builder 30 | . 1 . . 1 . 1 . . . . . . . . . . . 3 . . 2 . 5 . . . . 7 1 9 Tunneler 2 | . . . . . . . . . . . . . . . . . . . . . . . . . . . . 1 . 1 Hauler 15 | . 1 . 1 4 3 1 . . . 1 . . . . . . . . . . . . . . . . . 2 . 2 Recycler 24 | . . . 4 2 3 1 . . . . . . . . . . . . . . 2 . 4 . . . . 4 1 3 Carrier 2 | . . . . . . . . . . . . . . . . . . 1 . . . . 1 . . . . . . . Mechanic 3 | . . . . 2 . . . . . . . . . . . . . . . . . . . . . . . . . 1 Operator 5 | . . . . 2 . 1 . . . . . . 1 . . . . . . . . . 1 . . . . . . . Watcher 15 | . . . 1 2 1 2 . . . . . . 1 . . . . . . . 2 . 3 . . . . 1 . 2 Swarmer 95 | . 6 6 6 6 3 6 . 2 . . 3 . . . 3 . 1 . 1 4 10 . 13 6 3 . . 3 . 13 Saboteur 2 | . . . . . . . . . . . . . . . . . . . . . . . . . . . . . . 2 Grunt 134 | . 3 2 11 6 4 22 . . . 4 2 . . 1 . . . 9 6 4 . . 8 . . . . 31 . 21 Brawler 8 | . . . 1 1 . 1 . . . . . . . . . . . 1 . . . . . . . . . 3 . 1 Duelist 8 | . . . . 1 . 1 . . . . . . . . . . . . 1 1 . . . . . . . 3 . 1 Protector 1 | . . . . 1 . . . . . . . . . . . . . . . . . . . . . . . . . . Sentry 44 | . . . 9 8 3 4 . . . . 1 . 1 3 . 3 . 2 1 . . . 2 1 . . . 5 . 1 Specialist 3 | . . . . . . . . . . . . . . . . . . . . . . . . . . . . 1 . 2 Hunter 42 | . . . . . 2 1 . . . 2 . . 1 1 . . 1 3 2 . 2 . 4 . . . . 5 2 16 Programmer 39 | . . . . . . 5 . 1 . . 1 . 1 . . . . 5 . 2 . . 5 1 . . . 13 . 5 Heavy 2 | . . . . . . . . . . . . . . . . . . . . . . . . . . . . . . 2 Behemoth 3 | . . . . . . . . . . . . . . . . . . . 1 . . . 1 . . . 1 . . . Compactor 10 | . . . . . . . . . . . . 6 . . . . . . . . . 4 . . . . . . . . Cetus Guard 3 | . . . . . . . . . . . . . . . 3 . . . . . . . . . . . . . . . Guerrilla 1 | . . . . . . . . . . . . . . . 1 . . . . . . . . . . . . . . . Best Kill Streak 21 | . 5 3 10 10 4 18 . 2 . 4 3 5 1 2 3 3 2 7 5 4 21 2 9 5 3 . 1 14 4 21 Combat Bots Only 13 | . 3 3 4 6 3 9 . 2 . 4 3 5 1 2 3 3 2 4 5 4 12 2 9 5 3 . 1 9 2 13 Max Kills in Single Turn 17 | . 3 2 3 5 3 5 . 2 . 1 3 2 1 2 2 1 1 4 4 4 17 1 3 2 2 . 1 2 1 5 Gunslinging 1 | . . . . . . . . . . . . . . 1 . . . . . . . . 1 . . . . . . . Exploded 9 | . 2 2 3 2 3 4 . 1 . . 3 2 . . 2 . . 1 3 4 9 1 2 2 2 . . 2 . 3 Melee . | . . . . . . . . . . . . . . . . . . . . . . . . . . . . . . . Uniques/NPCs Destroyed . | . . . . . . . . . . . . . . . . . . . . . . . . . . . . . . . Combat | -11 -10 -10 -9 -9 -8 -7 -7 -7 -7 -6 -6 -6 -6 -6 -6 -6 -6 -5 -5 -5 -4 -4 -4 -4 -4 -4 -3 -3 -2 -1 -------- Run | Scr Mat Min Mat Sto Mat Fac Low Low Dat Pro Fac Was Fac Ext Cet Arc Hub Fac Upp Upp Fac Was Fac Upp Upp Zhi Pro Res Res Acc Damage Taken 28573 | . 224 396 689 691 511 1455 . 263 . 665 172 82 123 277 129 58 352 915 714 217 214 154 3309 123 8 . 1075 6751 87 8919 Core 2714 | . 47 32 66 89 40 202 . 31 . 19 12 7 . 18 8 13 9 16 16 . . . 181 6 . . . 331 13 1558 Absorbed by Shields 8886 | . . . . . . . . . . . 182 87 133 305 136 61 275 569 111 229 78 85 1209 131 9 . 406 3275 88 1517 Reduced by Siege Mode 2114 | . . . . . . . . . . . . . . . . . . 14 67 6 19 . 326 9 . . 95 947 12 619 Redirected to Shielding 138 | . . . . . . . . . . . . . . . . . . . . . . . . . . . . . . 138 Core Remaining (%) 82 | 100 . 68 . 61 92 . . . . 64 . . . . . . 92 . . 96 . . . . . . 83 74 99 . Volleys Fired 921 | . 33 13 56 74 52 96 . 19 . 15 14 10 12 15 10 8 3 45 19 12 10 11 92 9 2 10 14 159 7 101 Largest 4 | . 2 2 2 2 2 3 . 2 . 4 4 2 4 4 4 4 4 4 4 2 4 4 4 3 1 1 3 4 4 4 Hottest 435 | . 70 40 136 136 136 204 . 140 . 165 206 78 210 180 282 281 281 341 326 180 326 258 350 251 39 90 251 341 341 435 Shots Fired 2274 | . 52 22 104 146 104 187 2 26 . 54 52 20 43 60 30 28 12 149 72 24 17 24 250 18 2 9 39 455 19 254 Gun 826 | . 46 18 7 . . . . . . 43 48 . 43 60 28 28 12 88 31 3 3 . 164 9 . . 26 169 . . Cannon 1297 | . . . 92 141 102 174 2 26 . 11 . . . . . . . 55 39 15 13 10 83 5 . 9 13 275 19 213 Launcher 151 | . 6 4 5 5 2 13 . . . . 4 20 . . 2 . . 6 2 6 1 14 3 4 2 . . 11 . 41 Special . | . . . . . . . . . . . . . . . . . . . . . . . . . . . . . . . Kinetic 683 | . 20 18 7 . . 75 . 19 . 28 24 . 24 30 . . . . . . . . 115 5 . . 13 232 8 65 Thermal 1262 | . 26 . 92 141 102 99 2 7 . . 19 . 19 . 15 12 6 128 50 12 10 10 106 9 . 9 26 203 11 148 Explosive 129 | . 6 4 5 5 2 4 . . . . 4 20 . . 2 . . 6 2 6 1 14 3 4 2 . . 2 . 37 Electromagnetic 200 | . . . . . . 9 . . . 26 5 . . 30 13 16 6 15 20 6 6 . 26 . . . . 18 . 4 Robot Hit Streak 48 | . 6 4 14 11 12 10 . 3 . 7 5 6 7 6 11 5 11 12 11 12 4 8 46 3 . 12 48 33 4 28 Robot Miss Streak 6 | . 4 2 3 4 3 4 1 6 . 2 5 2 3 4 2 3 3 5 2 2 2 2 5 3 . . . 4 1 4 Penetration Max 2 | . . . . . . 1 . . . . . . . 1 . . . . . . . . 1 . . . . 2 . 1 Secondary Targets 11 | . . . . . . . . . . . . . . 3 1 . . 2 . . . . 2 . . . . 3 . . Max Gunslinging Chain 1 | . . . . . . . . . . . . . . 1 1 . . 1 . . . . 1 . . . . 1 . . Shots Hit Robots 1528 | . 33 12 67 91 66 123 . 8 . 36 25 14 25 39 24 20 8 97 53 18 7 17 175 7 . 9 36 332 11 175 Core Hits 919 | . 16 10 36 42 27 75 . 2 . 13 15 16 8 15 13 11 5 46 24 18 20 5 93 9 5 1 5 189 5 195 Critical Kills 37 | . . . 1 . 2 . . . . 1 . . 1 . . . . 1 1 . . . 4 . . . . 16 2 8 Critical Parts Destroyed 31 | . . . . . . . . . . 1 . . 1 3 . . . . . . . . 1 . . . 1 18 1 5 Critical Strikes 122 | . 1 . 1 . 2 11 . . . 4 . . 2 3 4 . . 8 1 . . . 14 . . . 2 49 3 17 Burn 11 | . 1 . . . . . . . . . . . . . 2 . . 6 . . . . 2 . . . . . . . Meltdown 10 | . . . 1 . 2 . . . . . . . . . . . . 1 1 . . . . . . . . 2 . 3 Destroy 61 | . . . . . . . . . . 2 . . 2 3 . . . . . . . . 5 . . . 2 33 3 11 Blast 33 | . . . . . . 11 . . . . . . . . . . . . . . . . 5 . . . . 14 . 3 Corrupt 5 | . . . . . . . . . . 2 . . . . 2 . . 1 . . . . . . . . . . . . Sever 2 | . . . . . . . . . . . . . . . . . . . . . . . 2 . . . . . . . Melee Attacks 6 | . . . . . . . . . . . . . . . . . . . . . . . 6 . . . . . . . Impact . | . . . . . . . . . . . . . . . . . . . . . . . . . . . . . . . Slashing 6 | . . . . . . . . . . . . . . . . . . . . . . . 6 . . . . . . . Piercing . | . . . . . . . . . . . . . . . . . . . . . . . . . . . . . . . Sneak Attacks . | . . . . . . . . . . . . . . . . . . . . . . . . . . . . . . . Combat Hostiles . | . . . . . . . . . . . . . . . . . . . . . . . . . . . . . . . Follow-up Attacks . | . . . . . . . . . . . . . . . . . . . . . . . . . . . . . . . Damage Inflicted 73284 | . 819 467 1764 2985 1564 5568 . 414 . 783 783 3640 585 1192 849 493 234 3783 2008 1172 2473 1860 6597 705 233 387 1535 13175 410 16806 Guns 14987 | . 367 128 62 . . . . . . 611 547 . 565 1006 577 493 223 1522 567 77 57 . 3550 147 . . 702 3786 . . Cannons 29622 | . . . 1313 1887 1436 4397 . 377 . 172 . . . . . . . 1216 971 420 77 366 2092 66 . 387 833 7633 371 5608 Explosions 27863 | . 452 339 389 1098 128 1122 . 37 . . 236 3640 . 110 272 . . 1024 470 675 2339 1494 685 492 233 . . 1560 . 11068 Melee 120 | . . . . . . . . . . . . . . . . . . . . . . . 120 . . . . . . . Ramming 692 | . . . . . . 49 . . . . . . 20 76 . . 11 21 . . . . 150 . . . . 196 39 130 Kinetic 15992 | . 154 128 62 . . 2810 . 313 . 400 252 . 276 590 . . . . . . . . 3065 66 . . 833 5821 122 1100 Thermal 28873 | . 213 . 1313 1887 1436 1643 . 101 . . 255 . 289 110 322 314 103 2597 1183 365 2220 366 2265 147 . 387 702 5383 249 5023 Explosive 22367 | . 452 339 389 1098 128 730 . . . . 236 3640 . . 272 . . 944 470 675 153 1494 611 492 233 . . 214 . 9797 Electromagnetic 5240 | . . . . . . 336 . . . 383 40 . . 416 255 179 120 221 355 132 100 . 386 . . . . 1561 . 756 Impact . | . . . . . . . . . . . . . . . . . . . . . . . . . . . . . . . Slashing 120 | . . . . . . . . . . . . . . . . . . . . . . . 120 . . . . . . . Piercing . | . . . . . . . . . . . . . . . . . . . . . . . . . . . . . . . Highest Corruption 24 | . . . . . . 5 5 6 6 24 . . . . . . 5 1 1 1 . 12 23 22 22 22 23 18 . 12 Average Corruption 9 | . . . . . . 1 5 5 6 7 . . . . . . 3 1 1 1 . 8 18 21 22 22 22 12 . 7 Corruption Purged 9 | . . . . . . . . . . . . . . . . . . . 1 1 . . 7 . . . . . . . Corruption Blocked . | . . . . . . . . . . . . . . . . . . . . . . . . . . . . . . . Effects 415 | . . . . . . 24 11 20 2 29 . . . . . . 1 9 2 2 . 6 86 22 14 15 52 94 . 26 Message Errors 86 | . . . . . . 4 1 6 . 6 . . . . . . . 2 . 1 . 1 23 3 1 2 14 17 . 5 Matter Fused 98 | . . . . . . 4 2 7 . 11 . . . . . . 1 4 . 1 . 1 20 4 4 5 8 20 . 6 Heat Flow Errors 52 | . . . . . . 5 3 1 . 4 . . . . . . . 2 . . . 1 8 3 2 2 5 13 . 3 Energy Discharges 46 | . . . . . . 2 1 2 . 5 . . . . . . . . 2 . . . 9 3 . 2 6 10 . 4 Parts Rejected 10 | . . . . . . . . . . . . . . . . . . . . . . 2 3 . 1 . 1 3 . . Data Loss (minor) 39 | . . . . . . 4 1 1 1 1 . . . . . . . . . . . . 4 4 2 2 8 9 . 2 Data Loss (major) 25 | . . . . . . 2 1 2 1 1 . . . . . . . . . . . . 2 4 4 1 3 4 . . Misfires 18 | . . . . . . 1 2 1 . 1 . . . . . . . 1 . . . . 5 . . . 1 5 . 1 Alerts 8 | . . . . . . 2 . . . . . . . . . . . . . . . . 2 . . . 2 2 . . Misdirections 4 | . . . . . . . . . . . . . . . . . . . . . . . 1 . . . . 1 . 2 Weapon Failures 29 | . . . . . . . . . . . . . . . . . . . . . . 1 9 1 . 1 4 10 . 3 Overload Shots 3 | . . . . . . . . . . . . . . . . . . . . . . . 3 . . . . . . . Overflow Damage 2102 | . 77 6 59 27 3 243 . 65 . . 28 . . . . . . 42 39 42 505 . 303 35 . 19 . 212 22 375 Projectiles 1103 | . . . 19 7 3 242 . 65 . . . . . . . . . 37 39 42 . . 292 . . 19 . 199 22 117 Explosions 986 | . 77 6 40 20 . 1 . . . . 28 . . . . . . 5 . . 505 . 11 35 . . . . . 258 Melee 13 | . . . . . . . . . . . . . . . . . . . . . . . . . . . . 13 . . Knockbacks 59 | . . . . . . 15 . 4 . . . . . . . . . . . . . . 9 . . . . 23 . 8 Impact 3 | . . . . . . 1 . . . . . . . . . . . . . . . . 1 . . . . . . 1 Kinetic 53 | . . . . . . 14 . 3 . . . . . . . . . . . . . . 7 . . . . 22 . 7 Secondary 3 | . . . . . . . . 1 . . . . . . . . . . . . . . 1 . . . . 1 . . Self-Inflicted Damage 1069 | . . 50 7 69 . 19 . . . . . 173 . . . . . 153 . . . 124 . 19 . . . 36 . 419 Shots 34 | . . 2 1 2 . 2 . . . . . 5 . . . . . 2 . . . 4 . 1 . . . 5 . 10 Rammed 42 | . . . . . . 5 . . . . . . 2 4 . . 2 . . . . . 11 . . . . 11 2 5 Targets Rammed 48 | . . . . . . 9 . . . . . . 2 4 . . 2 1 . . . . 11 . . . . 12 2 5 Kicked . | . . . . . . . . . . . . . . . . . . . . . . . . . . . . . . . Crushed 6 | . . . . . . 4 . . . . . . . . . . . 1 . . . . . . . . . 1 . . Highest Temperature 800 | . 72 36 353 249 203 324 107 183 . 236 44 . 119 121 396 82 167 360 396 . 198 111 540 308 268 276 379 576 150 800 Average Temperature 112 | . 31 14 98 90 99 71 42 28 . 93 16 . 43 46 224 43 100 128 141 . 107 50 129 109 115 111 126 129 68 166 Received Heat Transfer 3794 | . 42 81 222 147 126 417 . 36 . 126 16 . . 91 8 8 8 222 99 36 . . 334 . . . 56 1149 . 570 Effects 66 | . . . . 1 . . . . . . . . . . 1 . . 1 . . . . 9 . . . . 30 . 24 Shutdowns 24 | . . . . . . . . . . . . . . . . . . . . . . . 7 . . . . 11 . 6 Energy Bleed 10 | . . . . 1 . . . . . . . . . . . . . . . . . . 1 . . . . 6 . 2 Interference 6 | . . . . . . . . . . . . . . . 1 . . 1 . . . . . . . . . 4 . . Matter Decay 6 | . . . . . . . . . . . . . . . . . . . . . . . 1 . . . . 2 . 3 Short Circuit 4 | . . . . . . . . . . . . . . . . . . . . . . . . . . . . 2 . 2 Damage (minor) 4 | . . . . . . . . . . . . . . . . . . . . . . . . . . . . 2 . 2 Damage (major) 10 | . . . . . . . . . . . . . . . . . . . . . . . . . . . . 3 . 7 Damage (core) 2 | . . . . . . . . . . . . . . . . . . . . . . . . . . . . . . 2 Siege Activations 58 | . . . . . . . . . . . . . . . . . . 5 4 3 1 . 10 3 . . 1 20 1 10 Total Turns 1145 | . . . . . . . . . . . . . . . . . . 82 64 32 17 . 230 18 . . 56 484 8 154 Longest Duration 67 | . . . . . . . . . . . . . . . . . . 29 25 16 17 . 49 8 . . 56 67 8 36 Robots Corrupted 11 | . . . . . . . . . . 1 . . . . 1 . 1 . 1 . 1 . . . . . . 3 . 3 Combat Hostiles 11 | . . . . . . . . . . 1 . . . . 1 . 1 . 1 . 1 . . . . . . 3 . 3 Parts Fried 27 | . . . . . . 2 . . . 4 . . . 4 . . 2 2 3 . 1 . 1 . . . . 7 . 1 Impact Corruptions 3 | . . . . . . . . 1 . . . . . . . . . . . . . . 1 . . . . 1 . . Robots Melted 18 | . . . 1 1 3 1 . . . . . . . . 1 . . 3 1 . . . . . . . . 4 . 3 Combat Hostiles 16 | . . . 1 1 2 1 . . . . . . . . 1 . . 2 1 . . . . . . . . 4 . 3 Parts Melted 91 | . . . 6 4 9 2 . . . . 2 . . . 4 1 . 18 2 . 1 . 5 . . . . 13 1 23 Heat Transferred 37174 | . 703 . 2331 3358 2590 3082 . 180 . . 459 . 520 100 666 444 148 3528 1295 333 1437 333 3374 185 . 333 888 6049 259 4579 Parts Sabotaged 1 | . . . . . . . . . . . . . . . . . . . . . . . . . . . . . . 1 Parts Stolen . | . . . . . . . . . . . . . . . . . . . . . . . . . . . . . . . Parts Stripped . | . . . . . . . . . . . . . . . . . . . . . . . . . . . . . . . Power Chain Reactions 5 | . . . . . . 2 . . . . . . . 1 . . . 1 . . . . 1 . . . . . . . Missiles Intercepted . | . . . . . . . . . . . . . . . . . . . . . . . . . . . . . . . Alert | -11 -10 -10 -9 -9 -8 -7 -7 -7 -7 -6 -6 -6 -6 -6 -6 -6 -6 -5 -5 -5 -4 -4 -4 -4 -4 -4 -3 -3 -2 -1 ------- Run | Scr Mat Min Mat Sto Mat Fac Low Low Dat Pro Fac Was Fac Ext Cet Arc Hub Fac Upp Upp Fac Was Fac Upp Upp Zhi Pro Res Res Acc Peak Influence 2586 | . 196 167 569 749 426 832 . . . . 213 64 141 329 192 145 279 653 . . 887 438 794 . . . . 1442 898 2586 Initial 805 | . . 1 65 133 263 178 . . . . 34 5 44 36 26 76 50 131 . . 58 310 287 . . . . . 805 538 Average 378 | . 89 89 374 569 338 304 . . . . 60 39 72 189 113 124 145 324 . . 639 380 381 . . . . 432 866 1463 Maximum Alert Level 5 | . . . 2 3 2 3 . . . . 1 . . 1 . . 1 2 . . 3 2 3 . . . . 4 3 5 Low Security (%) 43 | 100 100 100 10 5 . 45 . . . . 99 100 100 77 100 100 85 38 . . 29 . 13 . . . . 37 . . Level 1 22 | . . . 36 7 75 23 . . . . . . . 22 . . 14 29 . . . 43 50 . . . . 26 . . Level 2 18 | . . . 52 79 24 13 . . . . . . . . . . . 32 . . . 56 20 . . . . 10 . 19 Level 3 10 | . . . . 7 . 17 . . . . . . . . . . . . . . 70 . 14 . . . . 16 100 13 Level 4 2 | . . . . . . . . . . . . . . . . . . . . . . . . . . . . 7 . 28 Level 5 . | . . . . . . . . . . . . . . . . . . . . . . . . . . . . . . . High Security 2 | . . . . . . . . . . . . . . . . . . . . . . . . . . . . . . 38 Max Security . | . . . . . . . . . . . . . . . . . . . . . . . . . . . . . . . Squads Dispatched 77 | . 2 1 2 3 2 10 . . . . 2 . 1 . . . 3 2 . . 1 . 6 . . . . 16 1 25 Investigation 8 | . . 1 1 . 2 2 . . . . . . . . . . . . . . . . . . . . . 2 . . Extermination 20 | . . . . . . 5 . . . . 1 . . . . . . 2 . . . . 3 . . . . 6 1 2 Reinforcement 25 | . 2 . 1 1 . 2 . . . . 1 . 1 . . . 3 . . . . . 2 . . . . 4 . 8 Assault 23 | . . . . 2 . 1 . . . . . . . . . . . . . . 1 . 1 . . . . 3 . 15 Garrison 1 | . . . . . . . . . . . . . . . . . . . . . . . . . . . . 1 . . Intercept . | . . . . . . . . . . . . . . . . . . . . . . . . . . . . . . . Searches Triggered . | . . . . . . . . . . . . . . . . . . . . . . . . . . . . . . . Data Miner Redirects 1 | . . . . . . . . . . . . . . . . . . . . . . . . . . . . 1 . . Construction Impeded 5 | . . . . . . . . . . . . . . . . . 1 . . . . . . . . . . 1 . 3 Haulers Reinforced 4 | . . . . . . 1 . . . . . . . . . . . . . . . . . . . . . 1 . 2 Active Scanning Responses . | . . . . . . . . . . . . . . . . . . . . . . . . . . . . . . . Cargo Convoy Interrupts 1 | . . . . . . . . . . . . . . . . . . . . . . . . . . . . 1 . . Stealth | -11 -10 -10 -9 -9 -8 -7 -7 -7 -7 -6 -6 -6 -6 -6 -6 -6 -6 -5 -5 -5 -4 -4 -4 -4 -4 -4 -3 -3 -2 -1 --------- Run | Scr Mat Min Mat Sto Mat Fac Low Low Dat Pro Fac Was Fac Ext Cet Arc Hub Fac Upp Upp Fac Was Fac Upp Upp Zhi Pro Res Res Acc Distress Signals 26 | . 2 . 5 1 3 . . . . . . . . 2 1 . 2 1 . . . . 2 . . . . 2 . 5 Communications Jammed 125 | . . . . . . 10 . . . . . . 20 5 . . 3 2 . . 2 . 10 . . . . 65 . 8 Distress Signals 120 | . . . . . . 10 . . . . . . 20 5 . . 3 . . . 2 . 9 . . . . 65 . 6 Times Spotted 599 | . 13 12 42 39 28 52 . 6 . 9 12 6 8 21 10 6 13 25 12 10 6 5 50 5 4 . 1 94 3 107 Peak Tracking Total 25 | . 3 3 5 6 6 8 . 4 . 5 4 5 2 4 5 1 4 4 5 4 3 3 7 3 4 . 1 8 2 25 Tactical Retreats 21 | . . 1 . . . 3 . 2 . . 1 . . . . . . 1 . . 1 . 2 . . . . 8 . 2 Traps | -11 -10 -10 -9 -9 -8 -7 -7 -7 -7 -6 -6 -6 -6 -6 -6 -6 -6 -5 -5 -5 -4 -4 -4 -4 -4 -4 -3 -3 -2 -1 ------- Run | Scr Mat Min Mat Sto Mat Fac Low Low Dat Pro Fac Was Fac Ext Cet Arc Hub Fac Upp Upp Fac Was Fac Upp Upp Zhi Pro Res Res Acc Traps Triggered 9 | . . . . . . 2 . . . . 2 . 1 . . . . . . . 1 . 1 . . . 1 1 . . Indirectly . | . . . . . . . . . . . . . . . . . . . . . . . . . . . . . . . Trap Hack Attempts 48 | . . . 6 42 . . . . . . . . . . . . . . . . . . . . . . . . . . Triggered . | . . . . . . . . . . . . . . . . . . . . . . . . . . . . . . . Disarmed 1 | . . . . 1 . . . . . . . . . . . . . . . . . . . . . . . . . . Reprogrammed 6 | . . . 1 5 . . . . . . . . . . . . . . . . . . . . . . . . . . Reused . | . . . . . . . . . . . . . . . . . . . . . . . . . . . . . . . Traps Extracted . | . . . . . . . . . . . . . . . . . . . . . . . . . . . . . . . Installed . | . . . . . . . . . . . . . . . . . . . . . . . . . . . . . . . Triggered 6 | . . . . . . . . . . . . . . . . . . . . . . . 1 3 . . 1 1 . . Exploded 1 | . . . . . . . . . . . 1 . . . . . . . . . . . . . . . . . . . Machines | -11 -10 -10 -9 -9 -8 -7 -7 -7 -7 -6 -6 -6 -6 -6 -6 -6 -6 -5 -5 -5 -4 -4 -4 -4 -4 -4 -3 -3 -2 -1 ---------- Run | Scr Mat Min Mat Sto Mat Fac Low Low Dat Pro Fac Was Fac Ext Cet Arc Hub Fac Upp Upp Fac Was Fac Upp Upp Zhi Pro Res Res Acc Machines Disabled 69 | . . 1 5 3 1 1 . 4 . . 8 . 1 3 2 . 4 6 . . 18 . 6 . . . . 2 . 4 Max in Single Turn 15 | . . 1 1 1 1 1 . 3 . . 3 . 1 . 1 . . 3 . . 15 . 2 . . . . 1 . 1 Garrison Access 3 | . . . . . . 1 . . . . . . . . . . . . . . . . 1 . . . . 1 . . Network Hub 1 | . . . . . . . . . . . . . . . . . 1 . . . . . . . . . . . . . Energy Cycler 2 | . . . . . . . . . . . . . . . . . . . . . . . . . . . . . . 2 Machines Sabotaged . | . . . . . . . . . . . . . . . . . . . . . . . . . . . . . . . Garrisons Compromised 1 | . . . . . . . . . . . . . . . . . . . . . . . . . . . . 1 . . Overloaded Fab Kills . | . . . . . . . . . . . . . . . . . . . . . . . . . . . . . . . Hacking | -11 -10 -10 -9 -9 -8 -7 -7 -7 -7 -6 -6 -6 -6 -6 -6 -6 -6 -5 -5 -5 -4 -4 -4 -4 -4 -4 -3 -3 -2 -1 --------- Run | Scr Mat Min Mat Sto Mat Fac Low Low Dat Pro Fac Was Fac Ext Cet Arc Hub Fac Upp Upp Fac Was Fac Upp Upp Zhi Pro Res Res Acc Machines Accessed 90 | . 3 1 8 7 7 13 1 . 4 . 5 . 3 4 3 . 1 4 1 . 2 . 8 . . 9 1 4 . 1 Terminals 59 | . 3 . 8 6 6 9 . . . . 4 . 2 4 3 . 1 2 . . . . 6 . . . 1 3 . 1 Fabricators 3 | . . . . . . . . . . . . . 1 . . . . 1 . . . . 1 . . . . . . . Repair Stations . | . . . . . . . . . . . . . . . . . . . . . . . . . . . . . . . Recycling Units 7 | . . . . 1 1 3 . . . . 1 . . . . . . . . . 1 . . . . . . . . . Scanalyzers . | . . . . . . . . . . . . . . . . . . . . . . . . . . . . . . . Garrison Access 5 | . . . . . . 1 . . . . . . . . . . . 1 . . 1 . 1 . . . . 1 . . Total Hacks 260 | . 10 1 20 14 19 34 1 . 31 . 12 . 5 6 3 . 1 9 1 . 4 . 28 . . 48 1 10 . 2 Successful 157 | . 5 1 10 7 6 16 1 . 31 . 2 . 3 2 2 . . 2 1 . 2 . 16 . . 48 1 1 . . Failed 101 | . 4 . 10 7 12 18 . . . . 10 . 2 4 1 . 1 7 . . 2 . 12 . . . . 9 . 2 Catastrophic 22 | . 1 . . 4 1 3 . . . . 2 . . 2 . . 1 . . . 1 . 4 . . . . 3 . . Database Lockouts 2 | . 1 . . . 1 . . . . . . . . . . . . . . . . . . . . . . . . . Manual 91 | . 7 . 10 7 9 21 . . . . 7 . 2 1 . . 1 1 . . 1 . 20 . . . . 4 . . Terminals 147 | . 10 . 20 12 16 24 . . . . 11 . 4 6 3 . 1 5 . . . . 24 . . . 1 8 . 2 Fabricators 6 | . . . . . . . . . . . . . 1 . . . . 2 . . . . 3 . . . . . . . Repair Stations . | . . . . . . . . . . . . . . . . . . . . . . . . . . . . . . . Recycling Units 17 | . . . . 2 3 8 . . . . 1 . . . . . . . . . 3 . . . . . . . . . Scanalyzers . | . . . . . . . . . . . . . . . . . . . . . . . . . . . . . . . Garrison Access 8 | . . . . . . 2 . . . . . . . . . . . 2 . . 1 . 1 . . . . 2 . . Terminal Hacks 127 | . 4 1 8 5 3 7 1 . 31 . 2 . 1 1 2 . . 2 1 . . . 8 . . 48 1 1 . . Record 53 | . . . . . . 1 . . 11 . . . . . 1 . . 1 . . . . 2 . . 36 1 . . . Part Schematic 17 | . . . . . 1 . . . 12 . . . . . . . . . . . . . . . . 4 . . . . Robot Schematic 5 | . . . . . . . . . 5 . . . . . . . . . . . . . . . . . . . . . Robot Analysis 8 | . 1 . 1 . 1 1 . . . . . . . . . . . . . . . . . . . 4 . . . . Prototype ID Bank 7 | . . . . . . . . . 3 . . . . . . . . . . . . . . . . 4 . . . . Open Door 5 | . . 1 . 1 . . 1 . . . . . . . 1 . . . 1 . . . . . . . . . . . Branch Access Points 5 | . . . 1 . . 1 . . . . . . 1 . . . . 1 . . . . 1 . . . . . . . Terminal Index 5 | . . . 1 1 . 1 . . . . . . . . . . . . . . . . 1 . . . . 1 . . Alert Level 4 | . . . 2 1 . . . . . . . . . . . . . . . . . . 1 . . . . . . . Unreport Threat 13 | . 2 . 3 2 . 1 . . . . 1 . . 1 . . . . . . . . 3 . . . . . . . Locate Traps 3 | . 1 . . . . 1 . . . . 1 . . . . . . . . . . . . . . . . . . . Patrol Status 1 | . . . . . 1 . . . . . . . . . . . . . . . . . . . . . . . . . Registered Components 1 | . . . . . . 1 . . . . . . . . . . . . . . . . . . . . . . . . Fabricator Hacks 1 | . . . . . . . . . . . . . 1 . . . . . . . . . . . . . . . . . Build 1 | . . . . . . . . . . . . . 1 . . . . . . . . . . . . . . . . . Repair Station Hacks . | . . . . . . . . . . . . . . . . . . . . . . . . . . . . . . . Recycling Unit Hacks 1 | . . . . . . . . . . . . . . . . . . . . . 1 . . . . . . . . . Report Inventory 1 | . . . . . . . . . . . . . . . . . . . . . 1 . . . . . . . . . Scanalyzer . | . . . . . . . . . . . . . . . . . . . . . . . . . . . . . . . Garrison Access Hacks 2 | . . . . . . 1 . . . . . . . . . . . . . . . . 1 . . . . . . . Seal Access 2 | . . . . . . 1 . . . . . . . . . . . . . . . . 1 . . . . . . . Unauthorized Hacks 26 | . 1 . 2 2 3 8 . . . . . . 1 1 . . . . . . 1 . 7 . . . . . . . Terminals 15 | . 1 . 2 . 1 3 . . . . . . 1 1 . . . . . . . . 6 . . . . . . . Track 3 | . 1 . . . . . . . . . . . . . . . . . . . . . 2 . . . . . . . Assimilate 1 | . . . 1 . . . . . . . . . . . . . . . . . . . . . . . . . . . Botnet 9 | . . . 1 . 1 3 . . . . . . 1 1 . . . . . . . . 2 . . . . . . . Disrupt 1 | . . . . . . . . . . . . . . . . . . . . . . . 1 . . . . . . . Operators 1 | . . . . . . . . . . . . . . . . . . . . . . . 1 . . . . . . . Fabricators 1 | . . . . . . . . . . . . . . . . . . . . . . . 1 . . . . . . . Fabnet 1 | . . . . . . . . . . . . . . . . . . . . . . . 1 . . . . . . . Repair Stations . | . . . . . . . . . . . . . . . . . . . . . . . . . . . . . . . Recycling Units 10 | . . . . 2 2 5 . . . . . . . . . . . . . . 1 . . . . . . . . . Reject 4 | . . . . 1 1 2 . . . . . . . . . . . . . . . . . . . . . . . . Mask 6 | . . . . 1 1 3 . . . . . . . . . . . . . . 1 . . . . . . . . . Scanalyzers . | . . . . . . . . . . . . . . . . . . . . . . . . . . . . . . . Garrison Access . | . . . . . . . . . . . . . . . . . . . . . . . . . . . . . . . Data Cores Recovered 3 | . . . . . . 1 . . . . . . 1 . . . . . . . . . 1 . . . . . . . Used 2 | . . . . . . 1 . . . . . . 1 . . . . . . . . . . . . . . . . . Hacking Detections 63 | . 2 . 6 6 7 13 . . . . 5 . 2 3 . . 1 4 . . 2 . 7 . . . . 4 . 1 Full Trace Events 8 | . . . 2 . 2 2 . . . . . . . . . . . . . . . . . . . . . 2 . . Feedback Events . | . . . . . . . . . . . . . . . . . . . . . . . . . . . . . . . Feedback Blocked . | . . . . . . . . . . . . . . . . . . . . . . . . . . . . . . . Robot Schematics Acquired 5 | . . . . . . . . . 5 . . . . . . . . . . . . . . . . . . . . . Robots Built . | . . . . . . . . . . . . . . . . . . . . . . . . . . . . . . . Authchips . | . . . . . . . . . . . . . . . . . . . . . . . . . . . . . . . Time . | . . . . . . . . . . . . . . . . . . . . . . . . . . . . . . . Total Robot Build Rating . | . . . . . . . . . . . . . . . . . . . . . . . . . . . . . . . Part Schematics Acquired 17 | . . . . . 1 . . . 12 . . . . . . . . . . . . . . . . 4 . . . . Parts Built 2 | . . . . . . . . . . . . . 2 . . . . . . . . . . . . . . . . . Authchips . | . . . . . . . . . . . . . . . . . . . . . . . . . . . . . . . Time 117 | . . . . . . . . . . . . . 117 . . . . . . . . . . . . . . . . . Total Part Build Rating 14 | . . . . . . . . . . . . . 14 . . . . . . . . . . . . . . . . . Parts Repaired . | . . . . . . . . . . . . . . . . . . . . . . . . . . . . . . . Time . | . . . . . . . . . . . . . . . . . . . . . . . . . . . . . . . Parts Recycled . | . . . . . . . . . . . . . . . . . . . . . . . . . . . . . . . Recycled Matter . | . . . . . . . . . . . . . . . . . . . . . . . . . . . . . . . Retrieved Matter . | . . . . . . . . . . . . . . . . . . . . . . . . . . . . . . . Retrieved Components . | . . . . . . . . . . . . . . . . . . . . . . . . . . . . . . . Parts Scanalyzed . | . . . . . . . . . . . . . . . . . . . . . . . . . . . . . . . Part Schematics Acquired . | . . . . . . . . . . . . . . . . . . . . . . . . . . . . . . . Parts Damaged . | . . . . . . . . . . . . . . . . . . . . . . . . . . . . . . . Bothacking | -11 -10 -10 -9 -9 -8 -7 -7 -7 -7 -6 -6 -6 -6 -6 -6 -6 -6 -5 -5 -5 -4 -4 -4 -4 -4 -4 -3 -3 -2 -1 ------------ Run | Scr Mat Min Mat Sto Mat Fac Low Low Dat Pro Fac Was Fac Ext Cet Arc Hub Fac Upp Upp Fac Was Fac Upp Upp Zhi Pro Res Res Acc Used RIF Installer . | . . . . . . . . . . . . . . . . . . . . . . . . . . . . . . . Robots Hacked 3 | . . . . . . . . . . . . . . . . . . . . . . . . . . . . 3 . . Non-combat . | . . . . . . . . . . . . . . . . . . . . . . . . . . . . . . . Combat 3 | . . . . . . . . . . . . . . . . . . . . . . . . . . . . 3 . . Robot Hacks Applied . | . . . . . . . . . . . . . . . . . . . . . . . . . . . . . . . Relay Couplers Released 8 | . . . . . . . . . . . . . . . . . . . . . . . 3 . . . . 5 . . Machine Destruction 2 | . . . . . . . . . . . . . . . . . . . . . . . . . . . . 2 . . Programmers 6 | . . . . . . . . . . . . . . . . . . . . . . . 3 . . . . 3 . . Fabnet Peak Effective % 3 | . . . . . . . . . . . . . . . . . . . . . . . . . . . 3 3 1 . Autooverrided 3 | . . . . . . . . . . . . . . . . . . . . . . . . . . . . 3 . . Robots Rewired 15 | . . . . . . . . . . . . . . 14 . . . . 1 . . . . . . . . . . . Allies Hacked 1 | . . . . . . . . . . . . . . . . . . . . 1 . . . . . . . . . . Hacks Repelled . | . . . . . . . . . . . . . . . . . . . . . . . . . . . . . . . Allies | -11 -10 -10 -9 -9 -8 -7 -7 -7 -7 -6 -6 -6 -6 -6 -6 -6 -6 -5 -5 -5 -4 -4 -4 -4 -4 -4 -3 -3 -2 -1 -------- Run | Scr Mat Min Mat Sto Mat Fac Low Low Dat Pro Fac Was Fac Ext Cet Arc Hub Fac Upp Upp Fac Was Fac Upp Upp Zhi Pro Res Res Acc Total Allies 39 | . . . 1 2 . . . . . 1 3 . . 28 . . . . 1 . . . . . . . . 3 . . Largest Group 18 | . . . 1 3 . . . . . 1 3 . . 18 10 2 1 . 1 1 . . . . . . . 2 . . Highest-Rated Group 505 | . . . 10 72 . . . . . 96 93 . . 505 293 51 31 . 30 30 . . . . . . . 89 . . Highest-Rated Ally 96 | . . . 10 31 . . . . . 96 31 . . 39 39 31 31 . 30 30 . . . . . . . 54 . . Total Orders 6 | . . . . . . . . . . . . . 2 . . . . 4 . . . . . . . . . . . . EXPLORE 5 | . . . . . . . . . . . . . 2 . . . . 3 . . . . . . . . . . . . RETURN 1 | . . . . . . . . . . . . . . . . . . 1 . . . . . . . . . . . . Ally Attacks 331 | . . . . 29 . . . . . 18 24 . . 187 48 7 9 . . 1 . . . . . . . 8 . . Total Damage 7992 | . . . . 460 . . . . . 556 774 . . 3651 977 103 1142 . . 30 . . . . . . . 299 . . Kills 49 | . . . . 8 . . . . . 2 4 . . 23 4 1 7 . . . . . . . . . . . . . Allies Corrupted . | . . . . . . . . . . . . . . . . . . . . . . . . . . . . . . . Allies Melted 1 | . . . . . . . . . . . 1 . . . . . . . . . . . . . . . . . . . Intel | -11 -10 -10 -9 -9 -8 -7 -7 -7 -7 -6 -6 -6 -6 -6 -6 -6 -6 -5 -5 -5 -4 -4 -4 -4 -4 -4 -3 -3 -2 -1 ------- Run | Scr Mat Min Mat Sto Mat Fac Low Low Dat Pro Fac Was Fac Ext Cet Arc Hub Fac Upp Upp Fac Was Fac Upp Upp Zhi Pro Res Res Acc Robot Analysis Total 8 | . 1 . 1 . 1 1 . . . . . . . . . . . . . . . . . . . 4 . . . . Derelict Logs Recovered 9 | . . 1 . . . . 2 1 . 2 . . . . . . . . 2 . . . . 1 . . . . . . Drone Launches 5 | . . . . . . . . . . . . . 2 . . . . 3 . . . . . . . . . . . . Drone Recoveries 1 | . . . . . . . . . . . . . . . . . . 1 . . . . . . . . . . . . Exploration | -11 -10 -10 -9 -9 -8 -7 -7 -7 -7 -6 -6 -6 -6 -6 -6 -6 -6 -5 -5 -5 -4 -4 -4 -4 -4 -4 -3 -3 -2 -1 ------------- Run | Scr Mat Min Mat Sto Mat Fac Low Low Dat Pro Fac Was Fac Ext Cet Arc Hub Fac Upp Upp Fac Was Fac Upp Upp Zhi Pro Res Res Acc Turns Passed 26939 | 75 614 754 1481 1097 1024 3211 559 827 128 1036 1074 165 706 1471 226 161 167 1496 1063 1097 354 156 1705 418 305 286 995 2889 262 1137 Spaces Moved 13921 | 52 256 263 773 501 607 1963 341 466 77 534 603 79 337 743 110 79 95 756 584 640 190 69 711 224 177 156 563 1162 135 675 Core 346 | 2 . . . . . . . . . . . . . . . . . . . . . . . . . . . . . 344 Treads 10546 | . 5 . 504 78 . 797 341 466 77 534 603 79 337 743 110 79 95 756 584 640 190 69 711 224 177 156 563 1162 135 331 Legs 77 | 50 27 . . . . . . . . . . . . . . . . . . . . . . . . . . . . . Wheels 2952 | . 224 263 269 423 607 1166 . . . . . . . . . . . . . . . . . . . . . . . . Hover . | . . . . . . . . . . . . . . . . . . . . . . . . . . . . . . . Flight . | . . . . . . . . . . . . . . . . . . . . . . . . . . . . . . . Fastest Speed 50 | 50 120 200 100 120 101 101 160 160 160 160 160 160 160 160 160 160 160 160 160 160 160 160 160 160 160 160 160 161 161 50 Average Speed 152 | 117 193 204 152 147 125 128 160 160 160 160 160 160 168 160 160 160 160 161 160 160 160 160 160 160 160 160 164 165 161 103 Slowest Speed 320 | 120 320 215 160 320 145 240 160 160 160 160 240 160 240 160 160 160 160 162 162 160 160 160 160 160 160 160 166 173 161 250 Overloaded Moves . | . . . . . . . . . . . . . . . . . . . . . . . . . . . . . . . Propulsion Burnouts . | . . . . . . . . . . . . . . . . . . . . . . . . . . . . . . . Robots Hopped . | . . . . . . . . . . . . . . . . . . . . . . . . . . . . . . . Cave-ins Triggered . | . . . . . . . . . . . . . . . . . . . . . . . . . . . . . . . Teleports 1 | . . . . . . . . . . . . . . . . . . . . . . . . . . . . . . 1 Exploration Rate (%) 49 | 4 44 47 70 83 54 52 52 61 68 71 22 70 24 85 69 77 17 39 76 67 7 64 23 51 43 62 79 32 4 28 Regions Visited 30 Branch Regions 16 Pre-discovered Areas 7 | . . . . . . . 1 1 1 1 . . . . . . . . . . . . . . . 3 . . . . Known Exits Taken 17 | . . . 1 . 1 1 1 1 1 1 . . 1 . . . 1 1 . . . . 1 1 1 1 1 1 1 . Unknown Exits Taken 9 | 1 1 1 . 1 . . . . . . . . . 1 1 1 . . 1 1 . . . . . . . . . . Scrap Searched 22 | . . 2 . . . . 2 3 . 3 . . . . . . . . 3 1 . . . 1 5 . 2 . . . Spaces Dug 82 | . . . . . . 9 . 6 . . . . . . . . . . . . 5 . 5 . 22 . . 31 3 1 Terrain Destroyed 1401 | . 34 26 52 29 17 45 . 26 . 4 19 105 1 1 . . . 96 43 42 94 128 52 51 22 . 2 80 6 426 Melee . | . . . . . . . . . . . . . . . . . . . . . . . . . . . . . . . Projectile 238 | . . . . . . 28 . 14 . 4 . . 1 1 . . . 24 11 3 6 . 38 6 . . 2 60 6 34 AOE 1163 | . 34 26 52 29 17 17 . 12 . . 19 105 . . . . . 72 32 39 88 128 14 45 22 . . 20 . 392 Terrain Rammed . | . . . . . . . . . . . . . . . . . . . . . . . . . . . . . . . Walls Destroyed . | . . . . . . . . . . . . . . . . . . . . . . . . . . . . . . . Machines Disabled . | . . . . . . . . . . . . . . . . . . . . . . . . . . . . . . . Actions | -11 -10 -10 -9 -9 -8 -7 -7 -7 -7 -6 -6 -6 -6 -6 -6 -6 -6 -5 -5 -5 -4 -4 -4 -4 -4 -4 -3 -3 -2 -1 --------- Run | Scr Mat Min Mat Sto Mat Fac Low Low Dat Pro Fac Was Fac Ext Cet Arc Hub Fac Upp Upp Fac Was Fac Upp Upp Zhi Pro Res Res Acc Total 17663 | 63 320 459 982 712 767 2436 354 513 82 683 690 97 448 990 141 98 101 918 666 686 230 92 1063 264 197 183 594 1765 165 904 Wait 1451 | . 8 158 69 39 60 269 7 20 . 97 18 . 71 58 1 . . 62 26 16 11 . 108 25 5 . 6 271 6 40 Move 13894 | 51 255 262 772 500 606 1962 340 465 76 533 603 78 336 742 109 78 95 755 583 639 190 68 710 223 176 155 562 1161 134 675 Hop . | . . . . . . . . . . . . . . . . . . . . . . . . . . . . . . . Pick Up 259 | 6 13 10 15 10 12 22 . 3 . 13 14 1 7 12 2 6 . 9 5 4 6 1 34 . 2 2 1 27 5 17 Fast Attach 167 | 6 1 1 7 10 7 12 3 2 3 4 7 . 4 . 3 . . 7 4 . 2 3 19 2 1 6 2 34 2 15 Attach 124 | . 2 3 6 2 3 12 . 3 . 6 4 1 1 . . 2 1 8 1 2 1 . 18 . 1 1 5 18 4 19 Detach 44 | . 2 1 2 3 2 3 . . . 1 2 1 1 . 4 . . 3 2 . . . 3 . 2 1 . 5 2 4 Swap 207 | . 6 4 15 13 9 9 1 . . 2 7 4 3 4 5 . 1 19 10 10 3 4 24 3 4 1 3 32 2 9 Drop 322 | . . 7 34 19 16 34 3 1 3 12 21 2 11 12 7 4 . 9 10 3 7 5 38 2 4 7 1 46 1 3 Fire 921 | . 33 13 56 74 52 96 . 19 . 15 14 10 12 15 10 8 3 45 19 12 10 11 92 9 2 10 14 159 7 101 Melee 6 | . . . . . . . . . . . . . . . . . . . . . . . 6 . . . . . . . Ram . | . . . . . . . . . . . . . . . . . . . . . . . . . . . . . . . Kick . | . . . . . . . . . . . . . . . . . . . . . . . . . . . . . . . Crush 47 | . . . . . . 9 . . . . . . 2 4 . . 1 1 . . . . 11 . . . . 12 2 5 Escape Stasis 24 | . . . . . . 8 . . . . . . . . . . . . . . . . . . . . . . . 16 Rewire 149 | . . . . . . . . . . . . . . 143 . . . . 6 . . . . . . . . . . . Trap 48 | . . . 6 42 . . . . . . . . . . . . . . . . . . . . . . . . . . Miscellaneous . | . . . . . . . . . . . . . . . . . . . . . . . . . . . . . . . Route ------- -11/Scrapyard -10/Materials -10/Mines -9/Materials (discovered 5 exits: *Mat x2 / Min x2 / *Sto) -9/Storage -8/Materials (discovered 2 exits: *Fac x2) -7/Factory (discovered 5 exits: *Fac x3 / *Low x2) -7/Lower Caves -7/Lower Caves (discovered 2 exits: *Fac / *Dat) -7/Data Miner -6/Proximity Caves -6/Factory (discovered 4 exits: Fac / Low x2 / Ext) -6/Waste -6/Factory (discovered 5 exits: *Fac / Low x2 / *Ext x2) -6/Extension (discovered 2 exits: *Fac / *Cet) -6/Cetus -6/Archives (discovered 2 exits: *Hub x2) -6/Hub_04(d) -5/Factory (discovered 3 exits: *Fac / *Upp x2) -5/Upper Caves -5/Upper Caves -4/Factory -4/Waste -4/Factory (discovered 2 exits: *Upp x2) -4/Upper Caves -4/Upper Caves -4/Zhirov -3/Proximity Caves -3/Research -2/Research (discovered 2 exits: *Acc x2) -1/Access (discovered 1 exit: [Com]) History --------- Turn | Location | Event 9 | -11/Scrapyard | Discovered new exit (range 14) 76 | -11/Scrapyard | Entered Materials 305 | -10/Materials | Build established: Mutant 573 | -10/Materials | Discovered new exit (range 12) 662 | -10/Materials | Central database locked down 690 | -10/Materials | Entered Mines 707 | -10/Mines | Met a Derelict bent on vengeance 758 | -10/Mines | Met a Derelict shopkeep closing up shop 1266 | -10/Mines | Learned Materials trap positions 1425 | -10/Mines | Discovered new exit (range 10) 1444 | -10/Mines | Entered Materials 1444 | -9/Materials | Evolved 2 slots: Propulsion x1, Utility x1 1445 | -9/Materials | Loaded intel: 32 trap records 2453 | -9/Materials | Discovered new exit (range 13) 2526 | -9/Materials | Build established: Scavenger-Mutant 2626 | -9/Materials | Identified exit to Mines 2626 | -9/Materials | Identified exit to Storage 2852 | -9/Materials | Discovered new exit (range 16) 2925 | -9/Materials | Entered Storage 2925 | -9/Storage | Accompanied by 1 ally 2935 | -9/Storage | Met a pair of Derelict thieves 3424 | -9/Storage | Discovered new exit (range 5) 4022 | -9/Storage | Entered Materials 4022 | -8/Materials | Evolved 2 slots: Propulsion x1, Utility x1 4648 | -8/Materials | Central database locked down 4687 | -8/Materials | Discovered new exit (range 18) 4980 | -8/Materials | Discovered new exit (range 17) 5043 | -8/Materials | Identified exit to Factory 5046 | -8/Materials | Entered Factory 5046 | -7/Factory | Evolved 2 slots: Utility x1, Weapon x1 5334 | -7/Factory | Build established: Scavenger-Skirmisher 5561 | -7/Factory | Discovered new exit (range 5) 5565 | -7/Factory | Identified exit to Factory 5779 | -7/Factory | Discovered exit to Factory (range 9) 6267 | -7/Factory | Build established: Skirmisher 7051 | -7/Factory | Build established: Tank 7143 | -7/Factory | Discovered exit to Factory (range 8) 7309 | -7/Factory | Destroyed 9 combat bots 7396 | -7/Factory | Identified exit to Lower Caves 8246 | -7/Factory | First assault squad dispatched 8257 | -7/Factory | Entered Lower Caves 8382 | -7/Lower Caves | Learned 12 Factory zone layouts 8459 | -7/Lower Caves | Spotted B-75 Beast 8568 | -7/Lower Caves | Encountered a Warlord checkpoint 8681 | -7/Lower Caves | Discovered new exit (range 10) 8753 | -7/Lower Caves | Identified exit to Lower Caves 8768 | -7/Lower Caves | Build established: Skirmisher 8816 | -7/Lower Caves | Entered another Lower Caves area 8821 | -7/Lower Caves | Encountered a Warlord checkpoint 8842 | -7/Lower Caves | Discovered exit to Factory (range 5) 8890 | -7/Lower Caves | Attracted the attention of an 0b10 base 9276 | -7/Lower Caves | Learned location of Zion (-6) 9514 | -7/Lower Caves | Found Alien Artifact 9514 | -7/Lower Caves | Identified Core Expander 9514 | -7/Lower Caves | Installed Core Expander, added new Weapon slot 9615 | -7/Lower Caves | Discovered new exit (range 8) 9625 | -7/Lower Caves | Identified exit to Data Miner 9643 | -7/Lower Caves | Entered Data Miner 9643 | -7/Data Miner | Discovered new exit (range 6) 9653 | -7/Data Miner | Identified exit to Proximity Caves 9675 | -7/Data Miner | Met Data Miner 9715 | -7/Data Miner | Learned location of Section 7 (-2) 9715 | -7/Data Miner | Acquired the access code to Warlord's prototype stash 9731 | -7/Data Miner | Received God Mode back door access code from Data Miner 9753 | -7/Data Miner | Build established: Mutant 9771 | -7/Data Miner | Entered Proximity Caves 10053 | -6/Proximity Caves | Build established: Skirmisher 10212 | -6/Proximity Caves | Escorted by Enhanced Grunt 10270 | -6/Proximity Caves | Learned location of Extension (-6) 10523 | -6/Proximity Caves | Build established: Gunner 10642 | -6/Proximity Caves | System corruption reached 10% 10679 | -6/Proximity Caves | Lost 3 parts (1u2w) 10782 | -6/Proximity Caves | Discovered exit to Factory (range 15) 10807 | -6/Proximity Caves | Entered Factory 10807 | -6/Factory | Evolved 2 slots: Power x1, Utility x1 10808 | -6/Factory | Identified exit to Extension 10809 | -6/Factory | Identified exit to Lower Caves 10809 | -6/Factory | Identified exit to Factory 11084 | -6/Factory | Noticed a derelict Sapper rigging charges 11387 | -6/Factory | Allied Derelicts emerged from ambush trap array 11492 | -6/Factory | Build established: Scavenger-Tank 11881 | -6/Factory | Sucked down chute 11881 | -6/Factory | Entered Waste 11927 | -6/Waste | Spotted C-40 Crusher 11932 | -6/Waste | Spotted C-40 Crusher 11935 | -6/Waste | Destroyed C-40 Crusher 11941 | -6/Waste | Destroyed C-40 Crusher 11941 | -6/Waste | Destroyed C-40 Crusher 11941 | -6/Waste | Spotted C-40 Crusher 11941 | -6/Waste | Spotted C-40 Crusher 11944 | -6/Waste | Destroyed C-40 Crusher 11944 | -6/Waste | Destroyed C-40 Crusher 11964 | -6/Waste | Spotted C-40 Crusher 11980 | -6/Waste | Destroyed C-40 Crusher 12023 | -6/Waste | Discovered new exit (range 13) 12046 | -6/Waste | Entered Factory 12363 | -6/Factory | Discovered exit to Factory (range 37) 12608 | -6/Factory | Build established: Tank 12619 | -6/Factory | Fabricated Graphene Brace (x2) 12752 | -6/Factory | Entered Extension 12816 | -6/Extension | Rescued a captive Derelict 12817 | -6/Extension | Rescued a captive Derelict 12881 | -6/Extension | Rescued a captive Derelict 12923 | -6/Extension | Rescued a captive Derelict 12924 | -6/Extension | Rescued a captive Derelict 13020 | -6/Extension | Rescued a captive Derelict 13174 | -6/Extension | Rescued a captive Derelict 13174 | -6/Extension | Rescued a captive Derelict 13229 | -6/Extension | Rescued a captive Derelict 13233 | -6/Extension | Rescued a captive Derelict 13266 | -6/Extension | Build established: Commander-Tank 13643 | -6/Extension | Spotted B-75 Beast 13663 | -6/Extension | Allies destroyed B-75 Beast 13664 | -6/Extension | Spotted B-75 Beast 13680 | -6/Extension | Allies destroyed B-75 Beast 13888 | -6/Extension | Rescued a captive Derelict 13889 | -6/Extension | Rescued a captive Derelict 13914 | -6/Extension | Rescued a captive Derelict 13957 | -6/Extension | Rescued a captive Derelict 14198 | -6/Extension | Discovered exit to Factory (range 10) 14199 | -6/Extension | Discovered new exit (range 6) 14223 | -6/Extension | Entered Cetus 14223 | -6/Cetus | Accompanied by 10 allies 14248 | -6/Cetus | Spotted Cetus Guard 14248 | -6/Cetus | Spotted Cetus Guard 14250 | -6/Cetus | Spotted Cetus Guard 14251 | -6/Cetus | Spotted Cetus Guard 14260 | -6/Cetus | Destroyed Cetus Guard 14267 | -6/Cetus | Allies destroyed Cetus Guard 14271 | -6/Cetus | Destroyed Cetus Guard 14279 | -6/Cetus | Destroyed Cetus Guard 14332 | -6/Cetus | Cetus Manufacturing Module disabled 14425 | -6/Cetus | Discovered new exit (range 16) 14449 | -6/Cetus | Entered Archives 14449 | -6/Archives | Accompanied by 2 allies 14539 | -6/Archives | Discovered new exit (range 15) 14561 | -6/Archives | Discovered new exit (range 15) 14588 | -6/Archives | Build established: Scavenger-Tank 14610 | -6/Archives | Entered Hub_04(d) 14610 | -6/Hub_04(d) | Accompanied by 1 ally 14752 | -6/Hub_04(d) | Network Hub disabled 14755 | -6/Hub_04(d) | Spotted Lightning 14756 | -6/Hub_04(d) | Discovered exit to Factory (range 15) 14758 | -6/Hub_04(d) | Spotted Lightning 14762 | -6/Hub_04(d) | Spotted Lightning 14777 | -6/Hub_04(d) | Entered Factory 14777 | -5/Factory | Evolved 2 slots: Propulsion x2 14870 | -5/Factory | Identified exit to Upper Caves 15486 | -5/Factory | Discovered new exit (range 4) 15843 | -5/Factory | Lost 4 parts (2n1u1w) 16273 | -5/Factory | Entered Upper Caves 16299 | -5/Upper Caves | Learned Factory security intel 16604 | -5/Upper Caves | Attracted the attention of an 0b10 outpost 16836 | -5/Upper Caves | Spotted B-75 Beast 16847 | -5/Upper Caves | Destroyed B-75 Beast 17030 | -5/Upper Caves | Learned 12 Factory zone layouts 17135 | -5/Upper Caves | Encountered a Warlord checkpoint 17307 | -5/Upper Caves | Discovered new exit (range 10) 17336 | -5/Upper Caves | Entered another Upper Caves area 17336 | -5/Upper Caves | Accompanied by 1 ally 17935 | -5/Upper Caves | Build established: Scavenger-Mutant 18427 | -5/Upper Caves | Discovered new exit (range 2) 18433 | -5/Upper Caves | Entered Factory 18433 | -4/Factory | Evolved 2 slots: Power x1, Utility x1 18573 | -4/Factory | Destroyed 12 combat bots 18683 | -4/Factory | First assault squad dispatched 18787 | -4/Factory | Sucked down chute 18787 | -4/Factory | Entered Waste 18792 | -4/Waste | Spotted C-40 Crusher 18802 | -4/Waste | EMP discharged 18803 | -4/Waste | Destroyed C-40 Crusher 18841 | -4/Waste | Spotted C-40 Crusher 18843 | -4/Waste | Destroyed C-40 Crusher 18849 | -4/Waste | Spotted C-40 Crusher 18849 | -4/Waste | Spotted C-40 Crusher 18852 | -4/Waste | Destroyed C-40 Crusher 18867 | -4/Waste | Crushed by Compactor (1 part destroyed, 1 dropped) 18870 | -4/Waste | Crushed by Compactor (1 part destroyed, 1 dropped) 18871 | -4/Waste | Spotted C-40 Crusher 18876 | -4/Waste | Spotted C-40 Crusher 18887 | -4/Waste | Destroyed C-40 Crusher 18901 | -4/Waste | Lost 3 parts (2u1w) 18902 | -4/Waste | EMP discharged 18902 | -4/Waste | System corruption reached 10% 18919 | -4/Waste | Discovered new exit (range 10) 18943 | -4/Waste | Entered Factory 19090 | -4/Factory | Discovered new exit (range 12) 19325 | -4/Factory | Lost 3 parts (1p1n1u) 19582 | -4/Factory | Destroyed 9 combat bots 19698 | -4/Factory | Build established: Generator-Tank 19751 | -4/Factory | Lost 3 parts (1p1u1w) 20027 | -4/Factory | Spotted B-86 Titan 20109 | -4/Factory | Destroyed B-86 Titan 20259 | -4/Factory | Identified exit to Upper Caves 20443 | -4/Factory | First assault squad dispatched 20648 | -4/Factory | Entered Upper Caves 20836 | -4/Upper Caves | Identified exit to Upper Caves 20989 | -4/Upper Caves | Build established: Generator-Skirmisher 21066 | -4/Upper Caves | Entered another Upper Caves area 21358 | -4/Upper Caves | Discovered new exit (range 8) 21370 | -4/Upper Caves | Identified exit to Zhirov 21371 | -4/Upper Caves | Entered Zhirov 21373 | -4/Zhirov | Discovered new exit (range 3) 21376 | -4/Zhirov | Identified exit to Proximity Caves 21402 | -4/Zhirov | Met Zhirov 21431 | -4/Zhirov | Learned location of Quarantine (-3) 21431 | -4/Zhirov | Learned location of Testing (-2) 21431 | -4/Zhirov | Learned location of Command (-1) 21463 | -4/Zhirov | Zhirov requested help retrieving the SGEMP Prototype 21493 | -4/Zhirov | Found Alien Artifact 21493 | -4/Zhirov | Identified Integrated Reactor 21493 | -4/Zhirov | Installed Integrated Reactor, increased core energy generation (+10) 21581 | -4/Zhirov | Found Alien Artifact 21657 | -4/Zhirov | Entered Proximity Caves 21958 | -3/Proximity Caves | Spotted B-86 Titan 22016 | -3/Proximity Caves | Destroyed B-86 Titan 22046 | -3/Proximity Caves | Lost 4 parts (1n2u1w) 22623 | -3/Proximity Caves | Discovered new exit (range 16) 22647 | -3/Proximity Caves | Identified exit to Research 22652 | -3/Proximity Caves | Entered Research 22652 | -3/Research | Evolved 2 slots: Utility x2 23252 | -3/Research | Lost 3 parts (2u1w) 23592 | -3/Research | Lost 3 parts (2p1w) 23852 | -3/Research | System corruption reached 10% 23971 | -3/Research | Found Gamma Bomb Array 24073 | -3/Research | Discovered new exit (range 24) 24241 | -3/Research | Identified exit to Research 24746 | -3/Research | Found Fusion Bomb Launcher 24783 | -3/Research | Garrison activated, responded to threat 24824 | -3/Research | Local machine network offline 24887 | -3/Research | Destroyed 7 combat bots 24896 | -3/Research | Found Fusion Bomb Launcher 24946 | -3/Research | Found Prototype Processor 24946 | -3/Research | Identified Exp. Targeting Computer 25224 | -3/Research | Cargo convoy interrupted 25402 | -3/Research | First assault squad dispatched 25417 | -3/Research | Incoming assault squad redirected 25496 | -3/Research | Destroyed 9 combat bots 25541 | -3/Research | Entered another Research area 25541 | -2/Research | Evolved 2 slots: Utility x2 25571 | -2/Research | Lost 3 parts (2p1w) 25621 | -2/Research | Discovered new exit (range 13) 25631 | -2/Research | Discovered new exit (range 6) 25639 | -2/Research | Identified exit to Access 25803 | -2/Research | Entered Access 25803 | -1/Access | Evolved 2 slots: Utility x2 26064 | -1/Access | Destroyed 8 combat bots 26079 | -1/Access | First assault squad dispatched 26185 | -1/Access | Destroyed 8 combat bots 26193 | -1/Access | Lost 3 parts (2n1w) 26470 | -1/Access | Discovered new exit (range 22) 26502 | -1/Access | High security lockdown imminent 26525 | -1/Access | Destroyed 9 combat bots 26582 | -1/Access | High security lockdown engaged 26589 | -1/Access | Lost 5 parts (1p3u1w) 26619 | -1/Access | System corruption reached 10% 26658 | -1/Access | Lost 5 parts (1p1n2u1w) 26726 | -1/Access | Identified Transdimensional Reconstructor 26726 | -1/Access | Warped through subspace 26727 | -1/Access | Core integrity fell below 50% 26728 | -1/Access | Destroyed 13 combat bots 26730 | -1/Access | Released all parts (12) 26752 | -1/Access | Energy Cycler disabled 26757 | -1/Access | Lost 14 parts (2p2n5u5w) 26922 | -1/Access | Spotted Investigator 26922 | -1/Access | Spotted Executioner 26924 | -1/Access | Scanned by Researcher 26929 | -1/Access | Core integrity fell below 20% 26940 | -1/Access | Destroyed by G-73 Enforcer with Heavy Laser Last Messages --------------- 26934_ Held in stasis. 26934_ Investigator is analyzing... 26934_ S-43 Plague stasis bubble strength at 145. 26934_ Stasis bubble strength at 134. 26934_ P-80 Master resets G-73 Enforcer, system corruption cleaned. 26935_ S-43 Plague stasis bubble strength at 140. 26935_ Stasis bubble strength at 128. 26936_ S-43 Plague stasis bubble strength at 135. 26936_ Stasis bubble strength at 122. 26936_ K-01 Serf collects debris. 26937_ Held in stasis. 26937_ Investigator is analyzing... 26937_ S-43 Plague stasis bubble strength at 130. 26937_ Stasis bubble strength at 116. 26938_ S-43 Plague stasis bubble strength at 125. 26938_ Stasis bubble strength at 110. 26939_ S-43 Plague stasis bubble strength at 120. 26939_ Stasis bubble strength at 104. 26940_ Held in stasis. 26940_ Investigator is analyzing... Map ----- +----------------------------------------------------+ | ???????????????#???? ??????????????????????????? | | ???????????????????? ??????????????????????????? | | ???????????????????? ??????????? ??????????????? | | ????????????????????# ??????????????????????????? | | ????????????????????# ??????????????????????????? | | ????????????????????# ??????????????????????????? | | ?????????????? ?????+ ##????????????????????????? | | ????????????????????# #????????????? ???????????? | | ????????????????????# #?????????????????????????? | | ????????????????????# #?????????????????????????? | | ????????????????????# #?????????????????????????? | | ????????????????????# #?????????????????????????? | | ????????????????????# #?????????????????????????? | | ????????????????????# #?????????????????#???????? | | ????????????????????# #????#????????????????????? | | ????????????????????# #?????????????????????????? | | ??????????#########?# #????? ???????????????????? | | ????????#?# // ?# #??????????????? ????#????? | | ??????????# / # #?????????????????????????? | | ??????????# # #?????????????????????????? | | ??????????#! / #?????????? ??????????????? | | ??????????# # #??#??????????????????????? | | ??????????# # #???????? ?????????? | | ??????????# ""T"" ?#ss#######"" #????????? | | ????????#?# """"" ?# ggggp % ????????? | | ??????############??# k!@c% iE R ????????? | | ??????# = ###########;###########?????????????? | | ????? # ## YY #?????????????????????? | | ??????#[ ## ##????????????????????? | | ??????# ## u ! #?????????????????????? | | ??????# ## k #??????????#??????????? | | ??????# ## Y #????? ???????????????? | | ??????# !## Y #?????????????????????? | | ??????#? ?# """ #?????????????????????? | | ?# ##+##+#### """ #??????? ?????????????? | | + R" #?????????????????????? | | ?# #####+#### """ #?????????????????????? | | ???????# ## #?????????????????????? | | ???????#! ## #?????"???????????????? | | ???????# ###############?????????????????????? | | ???????# #????????????????????? ?? ??????????? | | ???????# #????????????????????? ????????????? | | ???????# #??????????????????????????????????? | | ???????# ################???###+####?????????+ | | # ######/# #??# ??????? | | + / #??# ????? | | # ### # #??# ????? | | ????????# # #??# ????? | | ????????# # #??# ?????? | | ????????# # #??# ??????? | +----------------------------------------------------+ Best States ------------- Heat Dissipation 106 Coolant Potential 100 Energy Generation 75 Energy Capacity 1250 Matter Stores 800 Matter Capacity 900 Sight Range 23 Robot Scan Range 16 Terrain Scan Range 24 Terrain Scan Density 210 Jamming Range 14 Power Amplification 20 Armor Coverage 1200 Resistance: KI 30 Resistance: TH 20 Resistance: EM 15 Utility Shielding 66 Evasion (%) 55 Targeting Accuracy 12 Target Analysis 8 Armor Integrity Analysis 30 Recoil Reduction 6 Matter Filtering 30 Energy Filtering 50 Particle Charging 20 Item Schematics ----------------- Hcp. Storage Unit | -8/Materials | Hacked Combat Drone Bay | -7/Data Miner | Free Lgt. Regenerative Plating | -7/Data Miner | Free Biomechanical Wings | -7/Data Miner | Free Gravity Neutralizer | -7/Data Miner | Free Imp. Lightning Gun | -7/Data Miner | Free Linear Gravjet | -7/Data Miner | Free Imp. Recalibrator | -7/Data Miner | Free Variable Charge Gun | -7/Data Miner | Free Power Sword | -7/Data Miner | Free KE Penetrator | -7/Data Miner | Free Micro-nuke Launcher | -7/Data Miner | Free Imp. Fusion Compressor | -7/Data Miner | Free Assault Drone Bay | -4/Zhirov | Free Exp. Heat Sink | -4/Zhirov | Free Exp. Optical Array | -4/Zhirov | Free Imp. Arc Thrower | -4/Zhirov | Free Robot Schematics ------------------ H-66 Slayer | -7/Data Miner | Free S-27 Virus | -7/Data Miner | Free R-10 Processor | -7/Data Miner | Free G-50 Soldier | -7/Data Miner | Free L-41 Fighter | -7/Data Miner | Free Fabricated ------------ Graphene Brace | x2 | -6/Factory | Preloaded Alien Tech Used ----------------- Core Expander Integrated Reactor Transdimensional Reconstructor Achievements -------------- None Challenges ------------ None Game ------ Seed CouplerMakeshiftDatajack Manual? 0 Play Time 05:59:33 Cumulative 145.9 hours Start 2022.08.15 @ 23:30:33 End 2022.08.18 @ 00:12:51 Sessions 19 Manual Loads 0 Difficulty Rogue Special Mode None Game No. 69 Rogue 69 Adventurer 0 Explorer 0 Win Type - Total 6 Types 6/0/0/0/0/0/0/0/0 Lore% 57 Gallery% 70 Achievement% 58 Wizard Run 0 Options --------- ASCII 0 Keyboard 0 Movement Numpad Keybinds 0 Fullscreen 2 Font 24/Smallcaps Map View 76x50 Tactical HUD 1 Map Filters NONE Filters NONE Steam 1 RUN: fca4420f-0fc2-4496-85b5-8b2c10e64d65